fUSD/lending_fUSD_20241225
["ID","MTS","AMOUNT","RATE_DAILY","PERIOD"]
[346624427,1735128687427,-615.79,0.00012981,2]
[346624428,1735128687441,-500.0,0.00012981,2]
[346624429,1735128687451,-509.27,0.00012981,2]
[346624430,1735128687461,-580.77,0.00012981,2]
[346624431,1735128687471,-824.37,0.00012981,2]
[346624432,1735128687481,-500.0,0.00012981,2]
[346624433,1735128687490,-1158.45,0.00012981,2]
[346624434,1735128687501,-636.41,0.00012981,2]
[346624435,1735128687512,-500.0,0.00012981,2]
[346624436,1735128687522,-2110.03,0.00012981,2]
[346624437,1735128687531,-500.0,0.00012981,2]
[346624438,1735128687542,-804.77,0.00012981,2]
[346624439,1735128687552,-500.0,0.00012981,2]
[346624440,1735128687562,-547.17,0.00012981,2]
[346624441,1735128687572,-500.0,0.00012981,2]
[346624442,1735128687799,-866.32,0.00012981,2]
[346624443,1735128687811,-945.85,0.00012981,2]
[346624444,1735128687822,-500.0,0.00012981,2]
[346624445,1735128687833,-500.0,0.00012981,2]
[346624446,1735128687842,-761.44,0.00012981,2]
[346624447,1735128687851,-2036.3,0.00012981,2]
[346624448,1735128687860,-1794.85,0.00012981,2]
[346624449,1735128687871,-500.0,0.00012981,2]
[346624450,1735128687880,-500.0,0.00012981,2]
[346624451,1735128687889,-500.0,0.00012981,2]
[346624452,1735128687900,-500.0,0.00012981,2]
[346624453,1735128687911,-599.82,0.00012981,2]
[346624454,1735128687920,-546.11,0.00012981,2]
[346624455,1735128687931,-500.0,0.00012981,2]
[346624456,1735128687941,-500.0,0.00012981,2]
[346624457,1735128687951,-500.0,0.00012981,2]
[346624458,1735128687962,-500.0,0.00012981,2]
[346624459,1735128687972,-500.0,0.00012981,2]
[346624460,1735128687981,-500.0,0.00012981,2]
[346624461,1735128687991,-500.0,0.00012981,2]
[346624462,1735128688001,-927.77,0.00012981,2]
[346624463,1735128688011,-547.58,0.00012981,2]
[346624464,1735128688021,-1123.4,0.00012981,2]
[346624465,1735128688030,-500.0,0.00012981,2]
[346624466,1735128688040,-500.0,0.00012981,2]
[346624467,1735128688049,-500.0,0.00012981,2]
[346624468,1735128688059,-767.32,0.00012981,2]
[346624469,1735128688068,-500.0,0.00012981,2]
[346624470,1735128688077,-500.0,0.00012982,2]
[346624471,1735128688087,-500.0,0.00012982,2]
[346624472,1735128688096,-500.0,0.00012982,2]
[346624473,1735128688105,-500.0,0.00012982,2]
[346624474,1735128688114,-500.0,0.00012982,2]
[346624475,1735128688123,-500.0,0.00012982,2]
[346624476,1735128688133,-464.65238715,0.00012982,2]
[346624477,1735128688142,-500.0,0.00012982,2]
[346624478,1735128688152,-500.38,0.00012982,2]
[346624479,1735128688161,-641.00590978,0.00012982,2]
[346624480,1735128688171,-500.0,0.00012982,2]
[346624481,1735128688180,-500.0,0.00012982,2]
[346624482,1735128688191,-500.0,0.00012982,2]
[346624483,1735128688200,-500.0,0.00012982,2]
[346624484,1735128688212,-500.0,0.00012982,2]
[346624485,1735128688222,-500.0,0.00012982,2]
[346624486,1735128688233,-500.0,0.00012982,2]
[346624487,1735128688243,-489.10981399,0.00012982,2]
[346624488,1735128688252,-500.0,0.00012982,2]
[346624489,1735128688263,-472.18717199,0.00012982,2]
[346624490,1735128688275,-392.82659308,0.00012982,2]
[346624491,1735128688285,-500.0,0.00012982,2]
[346624492,1735128688294,-500.0,0.00012982,2]
[346624493,1735128688304,-500.0,0.00012982,2]
[346624494,1735128688313,-500.0,0.00012982,2]
[346624495,1735128688323,-500.0,0.00012982,2]
[346624496,1735128688332,-500.0,0.00012982,2]
[346624497,1735128688341,-288.16,0.00012982,2]
[346624498,1735128688350,-494.4780273,0.00012996,2]
[346624499,1735128688360,-1587286.52671322,0.00012996,2]
[346624500,1735128688371,-1193.3982882,0.00012996,2]
[346624501,1735128688380,-231.15940981,0.00012996,2]
[346624502,1735128688390,-172.855524,0.00012996,2]
[346624503,1735128688399,-172.855524,0.00012996,2]
[346624504,1735128688408,-500.0,0.00012999,2]
[346624505,1735128688418,-151.0,0.00012999,2]
[346624506,1735128688427,-500.0,0.00012999,2]
[346624507,1735128688436,-500.0,0.00012999,2]
[346624508,1735128688446,-500.0,0.00012999,2]
[346624509,1735128688455,-500.0,0.00012999,2]
[346624510,1735128688465,-500.0,0.00012999,2]
[346624511,1735128688474,-500.0,0.00012999,2]
[346624512,1735128688483,-500.0,0.00012999,2]
[346624513,1735128688492,-500.0,0.00012999,2]
[346624514,1735128688502,-500.0,0.00012999,2]
[346624515,1735128688513,-500.0,0.00012999,2]
[346624516,1735128688523,-500.0,0.00012999,2]
[346624517,1735128688532,-500.0,0.00012999,2]
[346624518,1735128688542,-347.38,0.00012999,2]
[346624519,1735128688551,-4566.66838908,0.00013,2]
[346624520,1735128688561,-520976.79343653,0.00013,2]
[346624521,1735128688570,-12323750.36355032,0.00013,2]
[346624522,1735128688579,-600.0,0.00013,2]
[346624523,1735128688588,-104446.2318378,0.00013,2]
[346624524,1735128688598,-10669083.81198229,0.00013,2]
[346624525,1735128690002,-500.0,0.00010689,2]
[346624526,1735128690014,-500.0,0.00010689,2]
[346624527,1735128690023,-523.13,0.00010689,2]
[346624528,1735128690032,-431.14858932,0.00010689,2]
[346624529,1735128690041,-500.0,0.00010735,2]
[346624530,1735128690051,-500.0,0.00010789,2]
[346624531,1735128690060,-500.0,0.00010789,2]
[346624532,1735128690069,-500.0,0.00010789,2]
[346624533,1735128690078,-500.0,0.00010789,2]
[346624534,1735128690088,-500.0,0.00010789,2]
[346624535,1735128690097,-500.0,0.00010789,2]
[346624536,1735128690106,-330.3200148,0.00010963,2]
[346624537,1735128690118,-169.6799852,0.00010963,2]
[346624538,1735128690127,-500.0,0.00011009,2]
[346624539,1735128690137,-27.6250148,0.0001101,2]
[346624540,1735128690161,-508.90561489,0.00010789,2]
[346624541,1735128690171,-358.11847011,0.0001101,2]
[346624542,1735128690182,-114.25651509,0.0001101,2]
[346624543,1735128690193,-500.0,0.00011063,2]
[346624544,1735128690205,-518.39347623,0.00011063,2]
[346624545,1735128690217,-25.40652377,0.00011063,2]
[346624546,1735128690227,-500.0,0.00011063,2]
[346624547,1735128690236,-432.18350623,0.00011063,2]
[346624548,1735128690247,-67.81649377,0.00011063,2]
[346624549,1735128690258,-500.0,0.00011063,2]
[346624550,1735128690269,-500.0,0.00011237,2]
[346624551,1735128690279,-500.0,0.00011283,2]
[346624552,1735128690289,-500.0,0.00011284,2]
[346624553,1735128690299,-500.0,0.00011337,2]
[346624554,1735128690308,-500.0,0.00011337,2]
[346624555,1735128690318,-500.0,0.00011337,2]
[346624556,1735128690328,-500.0,0.00011511,2]
[346624557,1735128690337,-500.0,0.00011557,2]
[346624558,1735128690346,-344.827489,0.00011558,2]
[346624559,1735128690358,-155.172511,0.00011558,2]
[346624560,1735128690368,-382.09,0.00011611,2]
[346624561,1735128690378,-442.698389,0.00011785,2]
[346624562,1735128690403,-254.8006,0.00010689,2]
[346624563,1735128690414,-245.1994,0.00010689,2]
[346624564,1735128690423,-500.0,0.00011611,2]
[346624565,1735128690432,-57.301611,0.00011785,2]
[346624566,1735128690442,-500.0,0.00011831,2]
[346624567,1735128690452,-500.0,0.00011832,2]
[346624568,1735128690462,-437.22,0.00012055,2]
[346624569,1735128690472,-563.35,0.00012055,2]
[346624570,1735128690481,-454.07,0.00012059,2]
[346624571,1735128690491,-500.0,0.00012106,2]
[346624572,1735128690501,-500.0,0.00012159,2]
[346624573,1735128690511,-500.0,0.0001238,2]
[346624574,1735128690522,-129.04296474,0.00012433,2]
[346624581,1735128781010,6149.70200508,0.00015,30]
[346624582,1735128877471,13144.89591,0.000179,30]
[346624583,1735128883109,-252.57,0.00010255,2]
[346624584,1735128883135,-245.71,0.00010255,2]
[346624585,1735128883164,-252.06,0.00010255,2]
[346624586,1735128883191,-247.86,0.00010255,2]
[346624587,1735128883219,-248.18,0.00010255,2]
[346624588,1735128883245,-300.0,0.00010255,2]
[346624589,1735128883277,-300.0,0.00010498,2]
[346624590,1735128883305,-251.78,0.00010498,2]
[346624591,1735128883520,-245.91,0.00010499,2]
[346624592,1735128883548,-245.39,0.00010499,2]
[346624593,1735128883573,-500.0,0.00010499,2]
[346624594,1735128883599,-3139.71,0.00010499,2]
[346624595,1735128883625,-739.52,0.00010499,2]
[346624596,1735128883650,-1231.79,0.00010499,2]
[346624597,1735128883675,-568.23,0.00010499,2]
[346624598,1735128883700,-1502.37,0.00010499,2]
[346624599,1735128883725,-500.0,0.00010499,2]
[346624600,1735128883751,-500.0,0.00010499,2]
[346624601,1735128883776,-500.0,0.00010499,2]
[346624602,1735128883801,-500.0,0.00010499,2]
[346624603,1735128883827,-321.77,0.00010499,2]
[346624604,1735128912403,-250.0,0.00010181,2]
[346624605,1735128912436,-247.47,0.00010354,2]
[346624606,1735128912462,-300.0,0.00010498,2]
[346624607,1735128912489,-465.05,0.00010499,2]
[346624608,1735128912514,-581.33,0.00010499,2]
[346624609,1735128912540,-500.0,0.00010499,2]
[346624610,1735128912566,-1656.15,0.00010499,2]
[346624613,1735129445983,681.52,8.219e-05,2]
[346624614,1735129563538,150.0,8e-05,2]
[346624615,1735129599303,150.0,9e-05,2]
[346624625,1735129731976,1000.0,9.601e-05,2]
[346624646,1735129811173,250.0,9.594e-05,2]
[346624652,1735129831949,-273.24,9.671e-05,2]
[346624654,1735129831959,-200.0,9.714e-05,2]
[346624657,1735129831967,-684.94,9.759e-05,2]
[346624658,1735129831976,-305.14,9.792e-05,2]
[346624659,1735129831986,-300.0,9.849e-05,2]
[346624660,1735129831996,-196.71093045,9.85e-05,2]
[346624661,1735129832007,-12176.17999743,9.85e-05,2]
[346624662,1735129832022,-667.78398031,9.85e-05,2]
[346624663,1735129832033,-526.74260338,9.85e-05,2]
[346624664,1735129832110,-5561.0,9.85e-05,2]
[346624665,1735129832121,-4771.58248843,9.85e-05,2]
[346624666,1735129832131,-282.84139311,9.887e-05,2]
[346624667,1735129832140,-163.66,9.887e-05,2]
[346624668,1735129832150,-250.0,9.905e-05,2]
[346624669,1735129832160,-500.98,9.96e-05,2]
[346624670,1735129832169,-200.0,0.0001,2]
[346624671,1735129832178,-250.86,0.0001002,2]
[346624672,1735129832187,-282.8413931,0.00010077,2]
[346624673,1735129832197,-247.91,0.00010136,2]
[346624674,1735129832206,-249.64,0.00010136,2]
[346624675,1735129832215,-245.52,0.00010137,2]
[346624676,1735129832224,-247.61,0.00010137,2]
[346624677,1735129832233,-247.6,0.00010137,2]
[346624678,1735129832243,-245.82,0.00010137,2]
[346624679,1735129832253,-249.16,0.00010137,2]
[346624680,1735129832263,-250.03,0.00010137,2]
[346624681,1735129832272,-250.23,0.00010137,2]
[346624682,1735129832281,-248.7,0.00010137,2]
[346624683,1735129832290,-608.29,0.00010137,2]
[346624684,1735129832301,-282.8413931,0.00010366,2]
[346624686,1735129832310,-249.37,0.00010399,2]
[346624687,1735129832320,-250.15,0.00010399,2]
[346624689,1735129832329,-245.97,0.00010399,2]
[346624691,1735129832338,-1877.82443626,0.0001046,2]
[346624694,1735129832349,-1105.11623385,0.0001046,2]
[346624700,1735129832403,-56244.1584969,0.0001046,2]
[346624702,1735129832412,-681.52,0.00010466,2]
[346624704,1735129832421,-251.49,0.00010499,2]
[346624706,1735129832430,-254.5,0.00010499,2]
[346624708,1735129832439,-254.33,0.00010499,2]
[346624710,1735129832450,-23946.5605,0.00010688,2]
[346624712,1735129832458,-4992.4492,0.00010688,2]
[346624714,1735129832467,-394.8885,0.00010688,2]
[346624716,1735129832476,-500.0,0.00010689,2]
[346624718,1735129832485,-548.25,0.00010689,2]
[346624720,1735129832498,-500.0,0.00010689,2]
[346624722,1735129832507,-500.0,0.00010689,2]
[346624725,1735129832517,-500.0,0.00010689,2]
[346624726,1735129832527,-587.78,0.00010689,2]
[346624728,1735129832536,-500.0,0.00010689,2]
[346624730,1735129832546,-500.0,0.00010689,2]
[346624733,1735129832559,-500.0,0.00010689,2]
[346624735,1735129832569,-561.45,0.00010689,2]
[346624736,1735129832581,-500.0,0.00010689,2]
[346624738,1735129832592,-500.0,0.00010689,2]
[346624740,1735129832602,-500.0,0.00010689,2]
[346624742,1735129832611,-500.0,0.00010689,2]
[346624744,1735129832621,-500.0,0.00010689,2]
[346624746,1735129832631,-500.0,0.00010689,2]
[346624749,1735129832641,-500.0,0.00010689,2]
[346624750,1735129832651,-500.0,0.00010689,2]
[346624752,1735129832660,-500.0,0.00010689,2]
[346624755,1735129832670,-500.0,0.00010689,2]
[346624757,1735129832680,-500.0,0.00010689,2]
[346624759,1735129832689,-500.0,0.00010689,2]
[346624760,1735129832698,-500.0,0.00010689,2]
[346624762,1735129832707,-500.0,0.00010689,2]
[346624764,1735129832717,-500.0,0.00010689,2]
[346624766,1735129832727,-500.0,0.00010689,2]
[346624768,1735129832736,-500.0,0.00010689,2]
[346624770,1735129832747,-500.0,0.00010689,2]
[346624772,1735129832757,-500.0,0.00010689,2]
[346624775,1735129832770,-500.0,0.00010689,2]
[346624777,1735129832780,-500.0,0.00010689,2]
[346624779,1735129832789,-500.0,0.00010689,2]
[346624781,1735129832799,-500.0,0.00010689,2]
[346624783,1735129832808,-500.0,0.00010689,2]
[346624785,1735129832817,-500.0,0.00010689,2]
[346624787,1735129832826,-500.0,0.00010689,2]
[346624789,1735129832836,-500.0,0.00010689,2]
[346624791,1735129832845,-500.0,0.00010689,2]
[346624793,1735129832854,-540.15,0.00010689,2]
[346624795,1735129832863,-643.89,0.00010689,2]
[346624797,1735129832873,-500.0,0.00010689,2]
[346624799,1735129832882,-500.0,0.00010689,2]
[346624801,1735129832891,-729.47,0.00010689,2]
[346624803,1735129832900,-500.0,0.00010689,2]
[346624805,1735129832909,-500.0,0.00010689,2]
[346624807,1735129832921,-305.27282435,0.00010689,2]
[346624809,1735129832935,-194.72717565,0.00010689,2]
[346624811,1735129832945,-500.0,0.00010689,2]
[346624813,1735129832954,-500.0,0.00010689,2]
[346624815,1735129832963,-500.0,0.00010689,2]
[346624817,1735129832974,-500.0,0.00010689,2]
[346624819,1735129832983,-221.37282435,0.00010689,2]
[346624821,1735129832996,-278.62717565,0.00010689,2]
[346624823,1735129833006,-500.0,0.00010689,2]
[346624825,1735129833015,-500.0,0.00010689,2]
[346624827,1735129833025,-637.82,0.00010689,2]
[346624829,1735129833035,-502.17,0.00010689,2]
[346624831,1735129833044,-500.0,0.00010689,2]
[346624833,1735129833054,-500.0,0.00010689,2]
[346624835,1735129833064,-608.02,0.00010689,2]
[346624837,1735129833074,-602.38,0.00010689,2]
[346624839,1735129833084,-526.04405461,0.00010689,2]
[346624841,1735129833094,-500.0,0.00010689,2]
[346624843,1735129833104,-500.0,0.00010689,2]
[346624844,1735129833114,-500.0,0.00010689,2]
[346624845,1735129833124,-500.0,0.00010689,2]
[346624846,1735129833133,-500.0,0.00010689,2]
[346624847,1735129833143,-500.0,0.00010689,2]
[346624848,1735129833153,-500.0,0.00010689,2]
[346624849,1735129833163,-500.0,0.00010689,2]
[346624850,1735129833175,-641.34,0.00010689,2]
[346624851,1735129833184,-500.0,0.00010689,2]
[346624852,1735129833194,-500.0,0.00010689,2]
[346624853,1735129833204,-542.75,0.00010689,2]
[346624854,1735129833214,-500.0,0.00010689,2]
[346624855,1735129833223,-500.0,0.00010689,2]
[346624856,1735129833232,-500.0,0.00010689,2]
[346624857,1735129833243,-614.05,0.00010689,2]
[346624858,1735129833255,-500.0,0.00010689,2]
[346624859,1735129833264,-500.0,0.00010689,2]
[346624860,1735129833274,-500.0,0.00010689,2]
[346624861,1735129833284,-500.0,0.00010689,2]
[346624862,1735129833294,-500.0,0.00010689,2]
[346624863,1735129833303,-500.0,0.00010689,2]
[346624864,1735129833314,-500.0,0.00010689,2]
[346624865,1735129833324,-607.45,0.00010689,2]
[346624866,1735129833335,-500.0,0.00010689,2]
[346624867,1735129833344,-500.0,0.00010689,2]
[346624868,1735129833354,-500.0,0.00010689,2]
[346624869,1735129833364,-500.0,0.00010689,2]
[346624870,1735129833374,-503.92,0.00010689,2]
[346624871,1735129833383,-500.0,0.00010689,2]
[346624872,1735129833392,-601.02,0.00010689,2]
[346624873,1735129833402,-500.0,0.00010689,2]
[346624874,1735129833411,-1334.01,0.00010689,2]
[346624875,1735129833420,-703.34,0.00010689,2]
[346624876,1735129833430,-945.06,0.00010689,2]
[346624877,1735129833440,-500.0,0.00010689,2]
[346624878,1735129833449,-1025.76,0.00010689,2]
[346624879,1735129833459,-500.0,0.00010689,2]
[346624880,1735129833469,-515.26,0.00010689,2]
[346624881,1735129833480,-514.2,0.00010689,2]
[346624882,1735129833490,-500.0,0.00010689,2]
[346624883,1735129833501,-500.0,0.00010689,2]
[346624884,1735129833511,-500.0,0.00010689,2]
[346624885,1735129833521,-500.0,0.00010689,2]
[346624886,1735129833531,-500.0,0.00010689,2]
[346624887,1735129833541,-500.0,0.00010689,2]
[346624888,1735129833555,-500.0,0.00010689,2]
[346624889,1735129833566,-5000.0,0.00010689,2]
[346624890,1735129833575,-253.57,0.00010689,2]
[346624891,1735129833586,-249.56,0.00010689,2]
[346624892,1735129833595,-246.5,0.00010689,2]
[346624893,1735129833605,-203.05,0.00010755,2]
[346624894,1735129833614,-203.21,0.00010755,2]
[346624895,1735129833624,-781.33,0.00010787,2]
[346624896,1735129833634,-500.0,0.00010787,2]
[346624897,1735129833644,-503.81099083,0.00010787,2]
[346624898,1735129833654,-594.91,0.00010787,2]
[346624899,1735129833664,-500.0,0.00010787,2]
[346624900,1735129833674,-1255.91,0.00010787,2]
[346624901,1735129833683,-500.0,0.00010787,2]
[346624902,1735129833692,-1134.16,0.00010787,2]
[346624903,1735129833701,-1605.78,0.00010787,2]
[346624904,1735129833711,-945.16,0.00010787,2]
[346624905,1735129833720,-500.0,0.00010787,2]
[346624906,1735129833730,-5671.07,0.00010787,2]
[346624907,1735129833740,-1130.09,0.00010787,2]
[346624908,1735129833751,-1441.44,0.00010787,2]
[346624909,1735129833760,-1916.94,0.00010787,2]
[346624910,1735129833770,-618.98750576,0.00010787,2]
[346624911,1735129833790,-346.64534902,0.00010787,2]
[346624912,1735129833802,-1350.03714522,0.00010787,2]
[346624913,1735129833811,-500.0,0.00010787,2]
[346624914,1735129833821,-1036.99,0.00010787,2]
[346624915,1735129833831,-777.14,0.00010787,2]
[346624916,1735129833840,-2395.73,0.00010787,2]
[346624917,1735129833849,-7146.54,0.00010787,2]
[346624918,1735129833859,-500.0,0.00010787,2]
[346624919,1735129833868,-851.57,0.00010787,2]
[346624920,1735129833877,-500.0,0.00010787,2]
[346624921,1735129833887,-500.0,0.00010787,2]
[346624922,1735129833897,-1016.02,0.00010787,2]
[346624923,1735129833906,-500.0,0.00010787,2]
[346624924,1735129833915,-500.0,0.00010787,2]
[346624925,1735129833925,-500.0,0.00010787,2]
[346624926,1735129833935,-6065.44,0.00010787,2]
[346624927,1735129833945,-500.0,0.00010787,2]
[346624928,1735129833955,-500.0,0.00010787,2]
[346624929,1735129833965,-500.0,0.00010787,2]
[346624930,1735129833975,-500.0,0.00010787,2]
[346624931,1735129833985,-731.67,0.00010787,2]
[346624932,1735129833994,-500.0,0.00010787,2]
[346624933,1735129834007,-211.39969111,0.00010787,2]
[346624934,1735129834033,-278.8692688,0.00010787,2]
[346624935,1735129834044,-616.90104009,0.00010787,2]
[346624936,1735129834053,-468.67871131,0.00010787,2]
[346624941,1735129837839,-470.39094375,0.00010475,2]
[346624945,1735129837910,-644.48700509,0.00010475,2]
[346624946,1735129837920,-31.32128869,0.00010787,2]
[346624947,1735129837930,-500.0,0.00010787,2]
[346624948,1735129837939,-1398.83,0.00010787,2]
[346624949,1735129837949,-79.60116137,0.00010787,2]
[346624950,1735129837960,-420.39883863,0.00010787,2]
[346624951,1735129837969,-500.0,0.00010787,2]
[346624952,1735129837979,-500.0,0.00010787,2]
[346624953,1735129837989,-500.0,0.00010787,2]
[346624954,1735129837999,-500.0,0.00010787,2]
[346624955,1735129838010,-500.0,0.00010787,2]
[346624956,1735129838020,-500.0,0.00010787,2]
[346624957,1735129838029,-500.0,0.00010787,2]
[346624958,1735129838040,-500.0,0.00010787,2]
[346624959,1735129838053,-500.0,0.00010787,2]
[346624960,1735129838062,-500.0,0.00010787,2]
[346624961,1735129838072,-500.0,0.00010787,2]
[346624962,1735129838081,-500.0,0.00010787,2]
[346624963,1735129838091,-150.800475,0.00010788,2]
[346624964,1735129838101,-156.651929,0.00010788,2]
[346624965,1735129838110,-500.0,0.00010788,2]
[346624966,1735129838119,-500.0,0.00010788,2]
[346624967,1735129838129,-500.0,0.00010788,2]
[346624968,1735129838138,-500.0,0.00010788,2]
[346624969,1735129838148,-500.0,0.00010788,2]
[346624970,1735129838158,-500.0,0.00010788,2]
[346624971,1735129838168,-500.0,0.00010788,2]
[346624972,1735129838180,-225.89924318,0.00010788,2]
[346624973,1735129838193,-274.10075682,0.00010788,2]
[346624974,1735129838203,-228.93037441,0.00010788,2]
[346624979,1735129838272,-271.06962559,0.00010788,2]
[346624980,1735129838282,-580.11227703,0.00010788,2]
[346624981,1735129838291,-500.0,0.00010788,2]
[346624982,1735129838301,-500.0,0.00010788,2]
[346624983,1735129838310,-500.0,0.00010788,2]
[346624984,1735129838320,-496.66263914,0.00010788,2]
[346624986,1735129838332,-3.33736086,0.00010788,2]
[346624988,1735129838341,-500.0,0.00010788,2]
[346624989,1735129838350,-500.0,0.00010788,2]
[346624990,1735129838360,-500.0,0.00010788,2]
[346624991,1735129838369,-263.09714709,0.00010788,2]
[346624992,1735129838378,-500.0,0.00010788,2]
[346624993,1735129838387,-500.0,0.00010788,2]
[346624994,1735129838396,-500.0,0.00010788,2]
[346624995,1735129838406,-500.0,0.00010788,2]
[346624996,1735129838415,-500.0,0.00010788,2]
[346624997,1735129838424,-500.0,0.00010788,2]
[346624998,1735129838434,-500.0,0.00010788,2]
[346624999,1735129838443,-500.0,0.00010788,2]
[346625000,1735129838454,-500.0,0.00010788,2]
[346625001,1735129838463,-500.0,0.00010788,2]
[346625002,1735129838472,-500.0,0.00010788,2]
[346625003,1735129838481,-500.0,0.00010788,2]
[346625004,1735129838491,-500.0,0.00010788,2]
[346625005,1735129838500,-500.0,0.00010788,2]
[346625006,1735129838509,-500.0,0.00010788,2]
[346625007,1735129838519,-500.0,0.00010788,2]
[346625008,1735129838529,-500.0,0.00010788,2]
[346625009,1735129838539,-500.0,0.00010788,2]
[346625010,1735129838549,-500.0,0.00010788,2]
[346625011,1735129838559,-500.0,0.00010788,2]
[346625012,1735129838569,-500.0,0.00010788,2]
[346625013,1735129838579,-506.77003989,0.00010788,2]
[346625014,1735129838590,-363.29545216,0.00010788,2]
[346625015,1735129838674,-136.70454784,0.00010788,2]
[346625016,1735129838684,-500.0,0.00010788,2]
[346625017,1735129838694,-500.0,0.00010788,2]
[346625018,1735129838704,-500.0,0.00010788,2]
[346625019,1735129838714,-500.0,0.00010788,2]
[346625020,1735129838724,-202.39959169,0.00010788,2]
[346625021,1735129838736,-297.60040831,0.00010788,2]
[346625022,1735129838746,-500.0,0.00010788,2]
[346625023,1735129838756,-500.0,0.00010788,2]
[346625024,1735129838765,-356.71284981,0.00010788,2]
[346625025,1735129838775,-500.0,0.00010788,2]
[346625026,1735129838784,-500.0,0.00010788,2]
[346625027,1735129838794,-500.0,0.00010788,2]
[346625028,1735129838803,-500.0,0.00010788,2]
[346625029,1735129838812,-500.0,0.00010788,2]
[346625030,1735129838821,-500.0,0.00010788,2]
[346625031,1735129838832,-500.0,0.00010788,2]
[346625032,1735129838841,-500.0,0.00010788,2]
[346625033,1735129838850,-500.0,0.00010788,2]
[346625034,1735129838860,-500.0,0.00010788,2]
[346625035,1735129838869,-500.0,0.00010788,2]
[346625036,1735129838880,-500.0,0.00010788,2]
[346625037,1735129838890,-500.0,0.00010788,2]
[346625038,1735129838900,-500.0,0.00010788,2]
[346625039,1735129838910,-500.0,0.00010788,2]
[346625040,1735129838919,-500.0,0.00010788,2]
[346625041,1735129838928,-500.0,0.00010788,2]
[346625042,1735129838938,-105.93553201,0.00010788,2]
[346625043,1735129838950,-394.06446799,0.00010788,2]
[346625044,1735129838959,-500.0,0.00010788,2]
[346625045,1735129838968,-500.0,0.00010788,2]
[346625046,1735129838978,-500.0,0.00010788,2]
[346625047,1735129838987,-500.0,0.00010788,2]
[346625048,1735129838996,-500.0,0.00010788,2]
[346625049,1735129839005,-500.0,0.00010788,2]
[346625050,1735129839015,-500.0,0.00010788,2]
[346625051,1735129839027,-508.81,0.00010788,2]
[346625052,1735129839036,-500.0,0.00010788,2]
[346625053,1735129839046,-508.44304128,0.00010788,2]
[346625054,1735129839055,-532.55,0.00010788,2]
[346625055,1735129839066,-500.0,0.00010788,2]
[346625056,1735129839075,-500.0,0.00010788,2]
[346625057,1735129839085,-500.0,0.00010788,2]
[346625058,1735129839095,-256.59044178,0.00010788,2]
[346625059,1735129839109,-243.40955822,0.00010788,2]
[346625060,1735129839119,-500.0,0.00010788,2]
[346625061,1735129839128,-511.92,0.00010788,2]
[346625062,1735129839137,-500.0,0.00010788,2]
[346625063,1735129839202,-311.55739322,0.00010788,2]
[346625064,1735129839214,-188.44260678,0.00010788,2]
[346625065,1735129839223,-500.0,0.00010788,2]
[346625066,1735129839232,-500.0,0.00010788,2]